fUSD/lending_fUSD_20241219
["ID","MTS","AMOUNT","RATE_DAILY","PERIOD"]
[345958809,1734567037269,-551.67,0.00023817,4]
[345958810,1734567037279,-500.0,0.00023817,4]
[345958811,1734567037292,-500.0,0.00023817,4]
[345958812,1734567037302,-839.72,0.00023817,4]
[345958813,1734567037312,-931.81,0.00023817,4]
[345958814,1734567037322,-533.65,0.00023817,4]
[345958815,1734567037331,-500.0,0.00023817,4]
[345958816,1734567037341,-596.18,0.00023817,4]
[345958817,1734567037351,-1186.33,0.00023817,4]
[345958818,1734567037361,-500.0,0.00023817,4]
[345958819,1734567037372,-500.0,0.00023817,4]
[345958820,1734567037381,-500.0,0.00023817,4]
[345958821,1734567037391,-500.0,0.00023817,4]
[345958822,1734567037401,-500.0,0.00023817,4]
[345958823,1734567037410,-500.0,0.00023817,4]
[345958824,1734567037420,-500.0,0.00023817,4]
[345958825,1734567037430,-500.0,0.00023817,4]
[345958826,1734567037440,-881.23,0.00023817,4]
[345958827,1734567037450,-500.0,0.00023817,4]
[345958828,1734567037460,-500.0,0.00023817,4]
[345958829,1734567037471,-500.0,0.00023817,4]
[345958830,1734567037481,-500.0,0.00023817,4]
[345958831,1734567037492,-500.0,0.00023817,4]
[345958832,1734567037503,-500.0,0.00023817,4]
[345958833,1734567037513,-500.0,0.00023817,4]
[345958834,1734567037523,-500.0,0.00023817,4]
[345958835,1734567037533,-505.40833353,0.00023817,4]
[345958836,1734567037543,-1117.8,0.00023817,4]
[345958837,1734567037553,-500.0,0.00023817,4]
[345958838,1734567037562,-500.0,0.00023817,4]
[345958839,1734567037572,-500.0,0.00023817,4]
[345958840,1734567037581,-500.0,0.00023817,4]
[345958841,1734567037591,-500.0,0.00023817,4]
[345958842,1734567037601,-1529.76,0.00023817,4]
[345958843,1734567037611,-500.0,0.00023817,4]
[345958844,1734567037624,-500.0,0.00023817,4]
[345958845,1734567037634,-500.0,0.00023817,4]
[345958846,1734567037644,-1733.35,0.00023817,4]
[345958847,1734567037654,-500.0,0.00023817,4]
[345958848,1734567037664,-500.0,0.00023817,4]
[345958850,1734567037675,-500.0,0.00023817,4]
[345958852,1734567037685,-500.0,0.00023817,4]
[345958854,1734567037695,-545.88,0.00023817,4]
[345958855,1734567037705,-500.0,0.00023817,4]
[345958856,1734567037715,-640.17,0.00023817,4]
[345958857,1734567037725,-1000.0,0.00023817,5]
[345958858,1734567037735,-570.68,0.00023817,4]
[345958859,1734567037745,-644.03,0.00023817,4]
[345958860,1734567037755,-712.02,0.00023817,4]
[345958861,1734567037764,-500.0,0.00023817,4]
[345958862,1734567037774,-500.0,0.00023817,2]
[345958864,1734567037783,-532.57,0.00023817,4]
[345958865,1734567037793,-1044.44,0.00023817,4]
[345958866,1734567037802,-500.0,0.00023817,4]
[345958867,1734567037812,-500.0,0.00023817,4]
[345958868,1734567037822,-500.0,0.00023817,4]
[345958869,1734567037831,-500.0,0.00023818,4]
[345958870,1734567037841,-500.0,0.00023818,4]
[345958871,1734567037851,-197.67948636,0.00023818,4]
[345958872,1734567037864,-501.08755187,0.00023818,4]
[345958873,1734567037874,-500.0,0.00023818,4]
[345958874,1734567037885,-500.0,0.00023818,4]
[345958875,1734567037895,-500.0,0.00023818,4]
[345958876,1734567037906,-500.63299894,0.00023818,4]
[345958877,1734567037916,-500.0,0.00023818,4]
[345958878,1734567037926,-500.70105331,0.00023818,4]
[345958879,1734567037939,-500.0,0.00023818,4]
[345958880,1734567037949,-500.57755308,0.00023818,4]
[345958881,1734567037959,-501.06391773,0.00023818,4]
[345958882,1734567037970,-500.0,0.00023818,4]
[345958883,1734567037980,-500.54277023,0.00023818,4]
[345958884,1734567037989,-500.7515289,0.00023818,4]
[345958885,1734567037999,-500.0,0.00023818,4]
[345958886,1734567038009,-429.04409603,0.00023818,4]
[345958887,1734567038019,-500.34837831,0.00023818,4]
[345958888,1734567038028,-501.17314462,0.00023818,4]
[345958889,1734567038038,-501.644822,0.00023818,4]
[345958890,1734567038048,-500.93204902,0.00023818,4]
[345958891,1734567038058,-163.04492811,0.00023818,4]
[345958892,1734567038067,-501.88779841,0.00023818,4]
[345958893,1734567038077,-202.85695644,0.00023818,4]
[345958894,1734567038087,-192.06809855,0.00023818,4]
[345958895,1734567038097,-500.0,0.00023818,4]
[345958896,1734567038107,-500.0,0.00023818,4]
[345958897,1734567038118,-500.0,0.00023818,4]
[345958898,1734567038128,-500.0,0.00023818,4]
[345958899,1734567038137,-501.10609179,0.00023818,4]
[345958900,1734567038147,-501.20215505,0.00023818,4]
[345958901,1734567038156,-304.7260779,0.00023818,4]
[345958902,1734567038166,-500.0,0.00023818,4]
[345958903,1734567038175,-500.98922894,0.00023818,4]
[345958904,1734567038184,-500.0,0.00023818,4]
[345958905,1734567038194,-522.01185624,0.00023818,4]
[345958906,1734567038204,-500.0,0.00023818,2]
[345958907,1734567038213,-500.0,0.00023818,4]
[345958908,1734567038223,-500.0,0.00023818,4]
[345958909,1734567038232,-500.0,0.00023818,4]
[345958910,1734567038241,-1518.43,0.00023818,4]
[345958911,1734567038251,-875.69,0.00023818,4]
[345958912,1734567038261,-1647.59,0.00023818,4]
[345958913,1734567038269,-500.0,0.00023818,4]
[345958914,1734567038278,-500.0,0.00023818,4]
[345958915,1734567038286,-500.0,0.00023818,4]
[345958916,1734567038294,-583.71,0.00023818,4]
[345958917,1734567038302,-915.85,0.00023818,4]
[345958918,1734567038310,-500.0,0.00023818,4]
[345958919,1734567038318,-500.0,0.00023818,4]
[345958920,1734567038327,-634.23,0.00023818,4]
[345958921,1734567038335,-392.02300947,0.00023818,4]
[345958922,1734567038343,-1041.84,0.00023818,4]
[345958923,1734567038352,-500.0,0.00023818,4]
[345958924,1734567038361,-213.29,0.00023818,4]
[345958925,1734567038372,-500.0,0.00023818,4]
[345958926,1734567038381,-384.29,0.00023824,2]
[345958927,1734567038389,-163.93421852,0.00023873,2]
[345958928,1734567038398,-512.32899187,0.00023873,2]
[345958929,1734567038407,-152.76905216,0.00023873,2]
[345958930,1734567038416,-632.82127359,0.00023873,2]
[345958931,1734567038426,-2780.19410833,0.00023889,2]
[345958932,1734567038435,-5000.0,0.000239,2]
[345958933,1734567038443,-162.60017401,0.00023952,2]
[345958934,1734567038453,-1353.23638527,0.00024,5]
[345958941,1734567038634,-7674.0,0.00024,2]
[345958943,1734567038644,-2780.19410833,0.00024033,2]
[345958945,1734567038654,-1538.21,0.00024055,2]
[345958947,1734567038664,-500.0,0.00024073,2]
[345958949,1734567038681,-500.72341487,0.00024073,2]
[345958951,1734567038691,-500.0,0.00024087,4]
[345958953,1734567038701,-608.25,0.00024087,4]
[345958955,1734567038711,-500.0,0.00024087,4]
[345958957,1734567038720,-670.96,0.00024087,4]
[345958959,1734567038730,-2036.95,0.00024087,4]
[345958961,1734567038740,-504.28,0.00024087,4]
[345958964,1734567038751,-1078.95,0.00024087,4]
[345958966,1734567038760,-1148.19,0.00024087,4]
[345958968,1734567038770,-1424.78,0.00024087,4]
[345958970,1734567038780,-500.0,0.00024087,4]
[345958972,1734567038790,-991.32,0.00024087,4]
[345958973,1734567038799,-1652.53,0.00024087,4]
[345958976,1734567038809,-500.0,0.00024087,4]
[345958978,1734567038819,-1016.05,0.00024087,4]
[345958980,1734567038828,-1535.15,0.00024087,4]
[345958982,1734567038838,-458.52,0.00024087,4]
[345958984,1734567038851,-1021.85,0.00024087,4]
[345958986,1734567038864,-500.0,0.00024087,4]
[345958988,1734567038875,-655.59,0.00024087,4]
[345958990,1734567038884,-4195.22,0.00024087,4]
[345958992,1734567038894,-500.0,0.00024087,4]
[345958994,1734567038910,-661.32,0.00024087,4]
[345958996,1734567038919,-500.0,0.00024087,4]
[345958998,1734567038929,-500.36,0.00024087,4]
[345959000,1734567038940,-500.0,0.00024087,4]
[345959002,1734567038949,-894.56,0.00024087,4]
[345959004,1734567038958,-1581.43,0.00024087,4]
[345959006,1734567038968,-860.51,0.00024087,4]
[345959008,1734567038977,-500.0,0.00024087,4]
[345959010,1734567038986,-500.0,0.00024088,4]
[345959012,1734567038995,-500.0,0.00024088,4]
[345959014,1734567039004,-889.51,0.00024088,4]
[345959016,1734567039014,-856.72,0.00024088,4]
[345959018,1734567039023,-187.950427,0.00024088,4]
[345959020,1734567039033,-2560.679915,0.00024088,4]
[345959022,1734567039042,-3819.189192,0.00024088,4]
[345959024,1734567039052,-500.0,0.00024088,4]
[345959026,1734567039062,-870.37,0.00024088,4]
[345959028,1734567039071,-500.0,0.00024088,4]
[345959030,1734567039080,-2063.36,0.00024088,4]
[345959032,1734567039090,-1228.86,0.00024088,4]
[345959034,1734567039099,-500.0,0.00024088,4]
[345959036,1734567039108,-641.77,0.00024088,4]
[345959038,1734567039119,-500.0,0.00024088,4]
[345959040,1734567039128,-1146.32,0.00024088,4]
[345959042,1734567039138,-500.0,0.00024088,4]
[345959044,1734567039147,-1225.58,0.00024088,4]
[345959046,1734567039156,-500.0,0.00024088,4]
[345959048,1734567039165,-500.0,0.00024088,4]
[345959050,1734567039175,-1426.43,0.00024088,4]
[345959052,1734567039187,-500.0,0.00024088,4]
[345959054,1734567039197,-500.0,0.00024088,4]
[345959056,1734567039206,-1368.26,0.00024088,4]
[345959058,1734567039215,-2474.53,0.00024088,4]
[345959060,1734567039224,-891.17,0.00024088,4]
[345959062,1734567039233,-2124.84,0.00024088,4]
[345959064,1734567039243,-500.0,0.00024088,4]
[345959066,1734567039251,-500.0,0.00024088,4]
[345959068,1734567039261,-551.52,0.00024088,4]
[345959070,1734567039270,-5362.76,0.00024088,4]
[345959072,1734567039280,-747.62,0.00024088,4]
[345959074,1734567039289,-676.88,0.00024088,4]
[345959077,1734567039298,-500.0,0.00024089,4]
[345959079,1734567039308,-500.0,0.00024089,4]
[345959081,1734567039317,-500.0,0.00024089,4]
[345959082,1734567039326,-500.0,0.00024089,4]
[345959085,1734567039335,-500.0,0.00024089,4]
[345959087,1734567039345,-716.37,0.00024089,4]
[345959089,1734567039355,-500.0,0.00024089,4]
[345959091,1734567039364,-500.0,0.00024089,4]
[345959093,1734567039375,-500.0,0.00024089,4]
[345959095,1734567039384,-2050.48,0.00024089,4]
[345959097,1734567039393,-500.0,0.00024089,4]
[345959099,1734567039403,-771.57,0.00024089,4]
[345959101,1734567039413,-629.91,0.00024089,4]
[345959103,1734567039423,-500.0,0.00024089,4]
[345959105,1734567039432,-500.0,0.00024089,4]
[345959107,1734567039441,-976.59,0.00024089,4]
[345959109,1734567039450,-574.9,0.00024089,4]
[345959111,1734567039461,-500.0,0.00024089,4]
[345959113,1734567039469,-500.0,0.00024089,4]
[345959115,1734567039478,-1027.22,0.00024089,4]
[345959117,1734567039488,-500.0,0.00024089,4]
[345959119,1734567039498,-824.26,0.00024089,4]
[345959121,1734567039508,-739.17,0.00024089,4]
[345959122,1734567039520,-536.39,0.00024089,4]
[345959125,1734567039531,-500.0,0.00024089,4]
[345959126,1734567039541,-500.0,0.00024089,4]
[345959128,1734567039551,-500.0,0.00024089,4]
[345959131,1734567039561,-500.0,0.00024089,4]
[345959132,1734567039570,-500.0,0.00024089,4]
[345959134,1734567039579,-568.64,0.00024089,4]
[345959136,1734567039589,-500.0,0.00024089,4]
[345959139,1734567039598,-2192.55,0.00024089,4]
[345959141,1734567039608,-500.0,0.00024089,4]
[345959143,1734567039620,-500.0,0.00024089,4]
[345959144,1734567039630,-500.0,0.00024089,4]
[345959146,1734567039639,-500.0,0.00024089,4]
[345959148,1734567039648,-500.0,0.00024089,4]
[345959150,1734567039658,-689.01,0.00024089,4]
[345959153,1734567039668,-998.51,0.00024089,4]
[345959155,1734567039678,-500.0,0.00024089,4]
[345959156,1734567039688,-500.0,0.00024089,4]
[345959158,1734567039697,-500.0,0.00024089,4]
[345959160,1734567039707,-561.63749088,0.00024089,4]
[345959162,1734567039716,-500.0,0.00024089,4]
[345959164,1734567039726,-500.0,0.00024089,4]
[345959166,1734567039735,-500.0,0.00024089,4]
[345959169,1734567039745,-500.0,0.00024089,4]
[345959170,1734567039755,-500.0,0.00024089,4]
[345959173,1734567039765,-500.0,0.00024089,4]
[345959174,1734567039775,-500.0,0.00024089,4]
[345959176,1734567039787,-500.0,0.00024089,4]
[345959178,1734567039797,-500.0,0.00024089,4]
[345959180,1734567039807,-500.0,0.00024089,4]
[345959182,1734567039817,-500.0,0.00024089,4]
[345959184,1734567039828,-646.97,0.00024089,4]
[345959186,1734567039838,-1164.3,0.00024089,4]
[345959188,1734567039848,-500.0,0.00024089,4]
[345959189,1734567039862,-571.19,0.00024089,4]
[345959191,1734567039878,-576.02,0.00024089,4]
[345959193,1734567039889,-500.0,0.00024089,4]
[345959194,1734567039898,-643.68,0.00024089,4]
[345959195,1734567039908,-500.0,0.00024089,4]
[345959196,1734567039917,-500.0,0.00024089,4]
[345959197,1734567039926,-500.0,0.00024089,4]
[345959198,1734567039937,-702.42,0.00024089,4]
[345959200,1734567039947,-500.0,0.00024089,4]
[345959202,1734567039957,-500.0,0.00024089,4]
[345959204,1734567039966,-1496.34,0.00024089,4]
[345959206,1734567039976,-500.0,0.00024089,4]
[345959208,1734567039987,-500.0,0.00024089,4]
[345959210,1734567039997,-500.0,0.00024089,4]
[345959212,1734567040006,-177.13,0.00024089,4]
[345959214,1734567040016,-500.0,0.00024089,4]
[345959216,1734567040025,-1268.5,0.00024089,4]
[345959218,1734567040034,-269.58484398,0.00024089,4]
[345959220,1734567040044,-500.0,0.00024089,4]
[345959222,1734567040054,-777.69,0.00024089,4]
[345959224,1734567040063,-595.85362378,0.00024089,4]
[345959226,1734567040072,-500.0,0.00024089,4]
[345959228,1734567040082,-500.0,0.00024089,4]
[345959230,1734567040091,-500.0,0.00024089,4]
[345959232,1734567040101,-500.0,0.00024089,4]
[345959234,1734567040110,-500.0,0.00024089,4]
[345959236,1734567040123,-500.0,0.00024089,4]
[345959238,1734567040132,-500.0,0.00024089,4]
[345959240,1734567040142,-500.0,0.00024089,4]
[345959242,1734567040153,-1075.88,0.00024089,4]
[345959244,1734567040163,-500.0,0.00024089,4]
[345959246,1734567040173,-500.0,0.00024089,4]
[345959248,1734567040182,-500.0,0.00024089,4]
[345959250,1734567040191,-500.0,0.00024089,4]
[345959252,1734567040201,-500.0,0.00024089,4]
[345959254,1734567040210,-500.0,0.00024089,4]
[345959256,1734567040220,-585.08,0.00024089,4]
[345959258,1734567040229,-500.0,0.00024089,4]
[345959260,1734567040238,-500.0,0.00024089,4]
[345959262,1734567040247,-500.0,0.00024089,4]
[345959264,1734567040257,-500.0,0.00024089,4]
[345959266,1734567040266,-500.0,0.00024089,4]
[345959268,1734567040277,-500.0,0.00024089,4]
[345959270,1734567040287,-500.0,0.00024089,4]
[345959272,1734567040297,-500.0,0.00024089,4]
[345959274,1734567040306,-500.0,0.00024089,4]
[345959276,1734567040316,-1025.85,0.00024089,4]
[345959278,1734567040326,-500.0,0.00024089,4]
[345959280,1734567040335,-500.0,0.00024089,4]
[345959282,1734567040345,-500.0,0.00024089,4]
[345959284,1734567040354,-500.0,0.00024089,4]
[345959286,1734567040363,-643.36254766,0.00024089,4]
[345959288,1734567040378,-1178.63,0.00024089,4]
[345959290,1734567040388,-593.29,0.00024089,4]
[345959292,1734567040398,-500.0,0.00024089,4]
[345959294,1734567040407,-1710.88,0.00024089,4]
[345959296,1734567040417,-500.0,0.00024089,4]
[345959298,1734567040426,-500.0,0.00024089,4]
[345959300,1734567040435,-500.0,0.00024089,4]
[345959302,1734567040445,-500.0,0.00024089,4]
[345959304,1734567040454,-506.05,0.00024089,4]
[345959306,1734567040464,-202.74855334,0.00024089,4]
[345959308,1734567040473,-1762.71,0.00024089,4]
[345959310,1734567040483,-500.0,0.00024089,4]
[345959312,1734567040493,-500.0,0.00024089,4]
[345959315,1734567040502,-822.43,0.00024089,4]
[345959317,1734567040512,-500.0,0.00024089,4]
[345959318,1734567040521,-500.0,0.00024089,4]
[345959320,1734567040531,-611.07,0.00024089,4]
[345959323,1734567040540,-500.0,0.00024089,4]
[345959324,1734567040552,-500.0,0.00024089,4]
[345959326,1734567040562,-1451.65,0.00024089,4]
[345959328,1734567040571,-500.0,0.00024089,4]
[345959330,1734567040580,-500.0,0.00024089,4]
[345959332,1734567040589,-500.0,0.00024089,4]
[345959334,1734567040599,-500.0,0.00024089,4]
[345959336,1734567040608,-500.0,0.00024089,4]
[345959338,1734567040621,-500.0,0.00024089,4]
[345959340,1734567040632,-500.0,0.00024089,4]
[345959342,1734567040641,-500.0,0.00024089,4]
[345959344,1734567040651,-940.46,0.00024089,4]
[345959346,1734567040661,-439.66,0.00024089,4]
[345959349,1734567040671,-178.7846115,0.00024089,4]
[345959350,1734567040681,-500.0,0.00024089,4]
[345959353,1734567040691,-500.0,0.00024089,4]
[345959354,1734567040701,-748.48,0.00024089,4]
[345959356,1734567040711,-500.0,0.00024089,4]
[345959359,1734567040721,-1226.97,0.00024089,4]
[345959360,1734567040731,-899.57,0.00024089,4]
[345959362,1734567040740,-500.0,0.00024089,4]
[345959364,1734567040750,-500.0,0.00024089,4]
[345959366,1734567040759,-500.0,0.00024089,4]
[345959368,1734567040769,-1021.29,0.00024089,4]
[345959370,1734567040779,-500.0,0.00024089,4]
[345959372,1734567040788,-500.0,0.00024089,4]
[345959374,1734567040797,-500.0,0.00024089,4]
[345959376,1734567040807,-970.07,0.00024089,4]
[345959378,1734567040816,-2304.84,0.00024089,4]
[345959380,1734567040826,-838.44,0.00024089,4]
[345959382,1734567040835,-500.0,0.00024089,4]
[345959384,1734567040845,-500.0,0.00024089,4]
[345959387,1734567040857,-853.5,0.00024089,4]
[345959389,1734567040866,-777.85,0.00024089,4]
[345959391,1734567040880,-500.0,0.00024089,4]
[345959393,1734567040889,-500.0,0.00024089,4]
[345959395,1734567040899,-3220.97,0.00024089,4]
[345959396,1734567040908,-500.0,0.00024089,4]
[345959399,1734567040918,-2758.63,0.00024089,4]
[345959400,1734567040929,-500.0,0.00024089,4]
[345959402,1734567040938,-500.0,0.00024089,4]
[345959404,1734567040948,-500.0,0.00024089,4]
[345959412,1734567041008,-500.0,0.00024089,4]
[345959414,1734567041018,-1502.87,0.00024089,2]
[345959416,1734567041028,-1998.23,0.00024089,4]
[345959418,1734567041037,-730.44,0.00024089,4]
[345959420,1734567041046,-500.0,0.00024089,4]
[345959422,1734567041056,-648.21,0.00024089,4]
[345959424,1734567041065,-503.66,0.00024089,4]
[345959425,1734567041075,-500.0,0.00024089,4]
[345959427,1734567041085,-500.0,0.00024089,4]
[345959429,1734567041095,-599.95,0.00024089,4]
[345959431,1734567041104,-376.4,0.00024089,4]
[345959433,1734567041113,-884.69,0.00024089,4]
[345959435,1734567041130,-500.0,0.00024089,4]
[345959437,1734567041140,-1757.36,0.00024089,4]
[345959439,1734567041150,-500.0,0.00024089,4]
[345959441,1734567041159,-500.0,0.00024089,4]
[345959443,1734567041169,-1497.17,0.00024089,4]
[345959445,1734567041179,-500.0,0.00024089,4]
[345959447,1734567041189,-1442.47,0.00024089,4]
[345959449,1734567041199,-500.0,0.00024089,4]
[345959451,1734567041208,-1063.32,0.00024089,4]
[345959453,1734567041217,-961.92,0.00024089,4]
[345959455,1734567041227,-510.17,0.00024089,4]
[345959457,1734567041236,-821.49,0.00024089,4]
[345959459,1734567041245,-1695.86,0.00024089,4]
[345959461,1734567041254,-2581.6,0.00024089,4]
[345959463,1734567041263,-1435.83,0.00024089,4]
[345959465,1734567041273,-500.0,0.00024089,4]
[345959467,1734567041282,-500.0,0.00024089,4]
[345959469,1734567041291,-627.40252899,0.00024089,4]
[345959471,1734567041301,-665.77,0.00024089,4]
[345959473,1734567041310,-620.09,0.00024089,4]
[345959475,1734567041319,-1894.44,0.00024089,4]
[345959477,1734567041328,-598.56626677,0.00024089,4]
[345959479,1734567041338,-500.0,0.00024089,4]
[345959481,1734567041347,-150.0,0.0002409,2]
[345959483,1734567041356,-1205.66,0.0002409,4]
[345959485,1734567041365,-500.0,0.0002409,4]
[345959487,1734567041379,-500.0,0.0002409,4]
[345959489,1734567041388,-500.0,0.0002409,4]
[345959491,1734567041397,-500.0,0.0002409,4]
[345959493,1734567041406,-500.0,0.0002409,4]
[345959495,1734567041416,-500.0,0.0002409,4]
[345959497,1734567041425,-500.0,0.0002409,2]
[345959499,1734567041435,-736.36,0.0002409,4]
[345959501,1734567041444,-656.34,0.0002409,4]
[345959503,1734567041454,-912.89,0.0002409,4]
[345959505,1734567041463,-3404.25,0.0002409,4]
[345959507,1734567041472,-634.88,0.0002409,4]
[345959509,1734567041481,-1013.5,0.0002409,4]
[345959511,1734567041491,-500.0,0.0002409,4]
[345959513,1734567041500,-229.15376488,0.0002409,4]
[345959515,1734567041509,-888.34,0.0002409,4]
[345959517,1734567041518,-530.55,0.0002409,4]
[345959519,1734567041528,-500.0,0.0002409,4]
[345959521,1734567041537,-500.0,0.0002409,4]
[345959523,1734567041546,-2011.49,0.0002409,4]
[345959525,1734567041556,-2955.11,0.0002409,4]
[345959527,1734567041565,-1082.91,0.0002409,4]
[345959529,1734567041574,-783.26,0.0002409,4]
[345959531,1734567041583,-506.95,0.0002409,4]
[345959533,1734567041592,-1829.98,0.0002409,4]
[345959535,1734567041601,-6815.42,0.0002409,4]
[345959537,1734567041610,-500.0,0.0002409,4]
[345959539,1734567041622,-1034.53,0.0002409,4]
[345959541,1734567041632,-1737.14,0.0002409,4]
[345959543,1734567041641,-982.34,0.0002409,4]
[345959545,1734567041650,-512.67,0.0002409,4]
[345959547,1734567041659,-1130.82,0.0002409,4]
[345959549,1734567041668,-500.0,0.0002409,4]
[345959551,1734567041677,-1676.68,0.0002409,4]
[345959553,1734567041687,-500.0,0.00024091,4]
[345959555,1734567041697,-500.0,0.00024091,4]
[345959557,1734567041706,-500.0,0.00024091,4]
[345959559,1734567041715,-507.38985623,0.00024091,4]
[345959561,1734567041724,-500.0,0.00024091,4]
[345959563,1734567041733,-500.0,0.00024091,4]
[345959565,1734567041743,-500.0,0.00024091,4]
[345959567,1734567041752,-500.0,0.00024091,4]
[345959569,1734567041762,-500.0,0.00024091,4]
[345959571,1734567041771,-500.0,0.00024091,4]
[345959573,1734567041781,-500.0,0.00024091,4]
[345959575,1734567041790,-500.0,0.00024091,4]
[345959577,1734567041799,-500.0,0.00024091,4]
[345959579,1734567041809,-500.0,0.00024091,4]
[345959581,1734567041817,-500.0,0.00024091,4]
[345959583,1734567041827,-500.0,0.00024091,4]
[345959585,1734567041836,-500.0,0.00024091,4]
[345959587,1734567041846,-500.0,0.00024091,4]
[345959589,1734567041858,-500.0,0.00024091,4]
[345959590,1734567041873,-551.9,0.00024091,4]
[345959592,1734567041884,-715.32,0.00024091,4]
[345959594,1734567041895,-500.0,0.00024091,4]
[345959597,1734567041905,-500.0,0.00024091,4]
[345959599,1734567041915,-500.0,0.00024091,4]
[345959600,1734567041924,-309.66,0.00024091,4]
[345959602,1734567041935,-500.0,0.00024091,4]
[345959604,1734567041945,-500.0,0.00024091,4]
[345959606,1734567041954,-788.66,0.00024091,4]
[345959608,1734567041963,-500.0,0.00024091,4]
[345959610,1734567041972,-500.0,0.00024091,4]
[345959612,1734567041981,-566.91,0.00024091,4]
[345959614,1734567041991,-500.0,0.00024091,4]
[345959616,1734567042000,-500.0,0.00024091,4]
[345959618,1734567042009,-500.0,0.00024091,4]
[345959620,1734567042018,-500.0,0.00024091,4]
[345959622,1734567042027,-500.0,0.00024091,4]
[345959624,1734567042036,-500.0,0.00024091,4]
[345959626,1734567042045,-500.0,0.00024091,4]
[345959628,1734567042054,-500.0,0.00024091,4]
[345959630,1734567042063,-500.0,0.00024091,4]
[345959632,1734567042072,-236.04858199,0.00024091,4]
[345959634,1734567042081,-573.54,0.00024091,4]
[345959636,1734567042090,-500.0,0.00024091,4]
[345959638,1734567042099,-738.29,0.00024091,4]
[345959640,1734567042108,-500.0,0.00024091,4]
[345959642,1734567042117,-500.0,0.00024091,4]
[345959644,1734567042132,-574.69,0.00024091,4]
[345959646,1734567042141,-500.0,0.00024091,4]
[345959648,1734567042150,-500.0,0.00024091,4]
[345959650,1734567042158,-500.0,0.00024091,4]
[345959652,1734567042168,-587.88,0.00024091,4]
[345959654,1734567042177,-500.0,0.00024091,4]
[345959656,1734567042186,-500.0,0.00024091,4]
[345959658,1734567042195,-552.26,0.00024091,4]
[345959660,1734567042204,-500.0,0.00024091,4]
[345959662,1734567042213,-500.0,0.00024091,4]
[345959664,1734567042222,-766.13,0.00024091,4]
[345959666,1734567042230,-500.0,0.00024091,4]
[345959668,1734567042240,-500.0,0.00024091,4]
[345959670,1734567042249,-513.8058687,0.00024091,4]
[345959672,1734567042258,-500.0,0.00024091,4]
[345959674,1734567042267,-500.0,0.00024091,4]
[345959676,1734567042276,-500.0,0.00024091,4]
[345959678,1734567042285,-500.0,0.00024091,4]
[345959680,1734567042294,-500.0,0.00024091,4]
[345959682,1734567042303,-551.67,0.00024091,4]
[345959684,1734567042312,-500.0,0.00024091,4]
[345959686,1734567042321,-839.72,0.00024091,4]
[345959688,1734567042331,-931.81,0.00024091,4]
[345959690,1734567042340,-533.65,0.00024091,4]
[345959692,1734567042349,-500.0,0.00024091,4]
[345959694,1734567042359,-596.18,0.00024091,4]